Cogmind - Beta 13 @@@ ROGUE MODE // 2024.07.07 @ 13:06:50 Player: APerTAS Result: Destroyed by G-34 Mercenary with Small Laser Performance ------------- Evolutions (0) 0 Regions Visited (1) 200 Robots Destroyed (12) 60 Value Destroyed (207) 207 Prototype IDs (0) 0 Alien Tech Used (0) 0 Bonus (0) 0 TOTAL SCORE: 467 Bonus ------- None Cogmind --------- Core Integrity 0/250 Matter 265/300 Energy 100/100 System Corruption 0% Temperature Cool (6) Movement Core (50) Location -10/Materials Parts ------- > --- POWER (1) -------- (None) > --- PROPULSION (2) --- (None) > --- UTILITY (2) ------ Signal Interpreter > --- WEAPON (2) ------- Datajack > --- INVENTORY (5) ---- Light Nuclear Core Light Assault Rifle Peak State ------------ > --- POWER ------------ Light Ion Engine > --- PROPULSION ------- Wheel Wheel > --- UTILITY ---------- Improved Heat Sink Signal Interpreter > --- WEAPON ----------- Beam Cannon Assault Rifle > --- INVENTORY -------- Light Nuclear Core Light Assault Rifle Datajack Mining Laser [Rating: 9] Favorites ----------- Power Ion Engine Engine Ion Engine Propulsion Wheel Wheel Wheel Utility Signal Interpreter Device Improved Heat Sink Processor Signal Interpreter Weapon Assault Rifle Energy Cannon Beam Cannon Ballistic Gun Assault Rifle Special Weapon Mining Laser Special Melee Weapon Datajack Build | -11 -10 ------- Run | Yrd Mat Slots Evolved . | . . Power . | . . Propulsion . | . . Utility . | . . Weapon . | . . Parts Attached 15 | 7 8 Power 4 | 2 2 Engine 4 | 2 2 Core . | . . Reactor . | . . Propulsion 2 | 2 . Treads . | . . Leg . | . . Wheel 2 | 2 . Hover . | . . Flight . | . . Utility 3 | 1 2 Device 2 | 1 1 Storage . | . . Processor 1 | . 1 Hackware . | . . Protection . | . . Artifact . | . . Weapon 6 | 2 4 Energy Gun . | . . Energy Cannon 1 | . 1 Ballistic Gun 3 | 2 1 Ballistic Cannon . | . . Launcher . | . . Special Weapon 1 | . 1 Impact Weapon . | . . Slashing Weapon . | . . Piercing Weapon . | . . Special Melee Weapon 1 | . 1 Unidentified Prototypes . | . . Parts Lost 8 | . 8 Power 1 | . 1 Propulsion 2 | . 2 Utility 2 | . 2 Weapon 3 | . 3 Highest Loss Streak 7 | . 7 To Critical Strikes . | . . Average Slot Usage (%) 91 | . 91 Engine 12 | . 12 Wheel 25 | . 25 Device 12 | . 12 Processor 13 | . 13 Energy Cannon 11 | . 11 Ballistic Gun 12 | . 12 Special Weapon 1 | . 1 Special Melee Weapon 2 | . 2 Naked Turns . | . . Heaviest Build 11 | 9 11 Greatest Support 20 | 20 20 Greatest Overweight (x) . | . . Average Overweight (x) . | . . Largest Inventory Capacity 5 | 5 5 Average Capacity 5 | 5 5 Most Carried 5 | 5 5 Average Carried 2 | 1 3 Final Capacity 5 | 5 5 Final Carried 4 | 4 2 Class Distribution -------------------- 100% | Mutant Dominant Class ---------------- Mutant | -10/Materials Resources | -11 -10 ----------- Run | Yrd Mat Matter Collected 417 | 286 131 Remotely . | . . Salvage Created 323 | 47 276 Parts 22 | 2 20 Haulers Intercepted . | . . Recyclers Shooed 2 | . 2 Parts Field Recycled . | . . Retrieved Matter . | . . Parts Self-Destructed . | . . Prevented . | . . Kills | -11 -10 ------- Run | Yrd Mat Combat Hostiles Destroyed 9 | 1 8 Guns 2 | 1 1 Cannons 7 | . 7 Classes Destroyed 5 | 1 4 Worker 1 | . 1 Builder 1 | . 1 Watcher 1 | . 1 Swarmer 6 | . 6 Grunt 3 | 1 2 Best Kill Streak 6 | 1 6 Combat Bots Only 5 | 1 5 Max Kills in Single Turn 1 | 1 1 Gunslinging . | . . Exploded . | . . Melee . | . . Uniques/NPCs Destroyed . | . . Combat | -11 -10 -------- Run | Yrd Mat Hostile Shots Fired 106 | 5 101 Missed 26 | 2 24 Damage Taken 807 | 33 774 Core 258 | 21 237 Absorbed by Shields . | . . Regen/Repaired (Parts) 21 | . 21 Core Remaining (%) 91 | 91 . Volleys Fired 49 | 4 45 Largest 2 | 2 2 Hottest 100 | 40 100 Shots Fired 90 | 8 82 Gun 50 | 8 42 Cannon 37 | . 37 Launcher . | . . Special 3 | . 3 Kinetic 50 | 8 42 Thermal 40 | . 40 Explosive . | . . Electromagnetic . | . . Robot Hit Streak 9 | 7 9 Robot Miss Streak 6 | . 6 Penetration Max . | . . Secondary Targets . | . . Shots Hit Robots 46 | 7 39 Core Hits 16 | 3 13 Critical Kills . | . . Critical Parts Destroyed . | . . Critical Strikes . | . . Melee Attacks 5 | . 5 Impact . | . . Slashing . | . . Piercing . | . . Sneak Attacks . | . . Combat Hostiles . | . . Follow-up Attacks . | . . Damage Inflicted 686 | 90 596 Guns 318 | 90 228 Cannons 296 | . 296 Explosions . | . . Melee . | . . Ramming . | . . Kinetic 318 | 90 228 Thermal 368 | . 368 Explosive . | . . Electromagnetic . | . . Impact . | . . Slashing . | . . Piercing . | . . Highest Corruption . | . . Average Corruption . | . . Corruption Purged . | . . Corruption Blocked . | . . Overload Shots . | . . Overflow Damage . | . . Projectiles . | . . Explosions . | . . Melee . | . . Knockbacks . | . . Impact . | . . Kinetic . | . . Secondary . | . . Self-Inflicted Damage . | . . Shots . | . . Rammed . | . . Targets Rammed . | . . Kicked . | . . Crushed . | . . Highest Temperature 154 | 6 154 Average Temperature 59 | 6 68 Received Heat Transfer 282 | 18 264 Siege Activations . | . . Robots Corrupted . | . . Combat Hostiles . | . . Parts Fried . | . . Impact Corruptions . | . . Robots Melted . | . . Combat Hostiles . | . . Parts Melted . | . . Heat Transferred 779 | . 779 Parts Sabotaged . | . . Parts Stolen . | . . Parts Stripped . | . . Power Chain Reactions . | . . Alert | -11 -10 ------- Run | Yrd Mat Peak Influence 258 | 20 258 Initial 13 | . 13 Average 108 | 3 147 Maximum Alert Level 1 | . 1 Low Security (%) 83 | 100 76 Level 1 16 | . 23 Level 2 . | . . Level 3 . | . . Level 4 . | . . Level 5 . | . . High Security . | . . Max Security . | . . Squads Dispatched 1 | . 1 Investigation . | . . Extermination . | . . Reinforcement 1 | . 1 Assault . | . . Garrison . | . . Intercept . | . . Searches Triggered . | . . Construction Impeded . | . . Haulers Reinforced . | . . Active Scanning Responses . | . . Cargo Convoy Interrupts . | . . Stealth | -11 -10 --------- Run | Yrd Mat Distress Signals 2 | . 2 Communications Jammed . | . . Distress Signals . | . . Times Spotted 12 | 1 11 Peak Tracking Total 6 | 1 6 Tactical Retreats . | . . Traps | -11 -10 ------- Run | Yrd Mat Traps Triggered . | . . Indirectly . | . . Trap Hack Attempts . | . . Triggered . | . . Disarmed . | . . Reprogrammed . | . . Reused . | . . Traps Extracted . | . . Installed . | . . Triggered . | . . Machines | -11 -10 ---------- Run | Yrd Mat Machines Disabled 1 | . 1 Max in Single Turn 1 | . 1 Machines Repaired . | . . Machines Dismantled . | . . Machines Sabotaged . | . . Overloaded Fab Kills . | . . Hacking | -11 -10 --------- Run | Yrd Mat Machines Accessed 3 | . 3 Terminals 2 | . 2 Fabricators . | . . Repair Stations 1 | . 1 Recycling Units . | . . Scanalyzers . | . . Garrison Access . | . . Total Hacks 11 | . 11 Successful 7 | . 7 Failed 4 | . 4 Catastrophic 1 | . 1 Database Lockouts . | . . Manual . | . . Terminals 6 | . 6 Fabricators . | . . Repair Stations 5 | . 5 Recycling Units . | . . Scanalyzers . | . . Garrison Access . | . . Terminal Hacks 5 | . 5 Branch Access Points 1 | . 1 Emergency Access Points 1 | . 1 Patrol Status 1 | . 1 Zone Layout 2 | . 2 Fabricator Hacks . | . . Repair Station Hacks 2 | . 2 Scan Component 1 | . 1 Repair 1 | . 1 Recycling Unit Hacks . | . . Scanalyzer . | . . Garrison Access Hacks . | . . Unauthorized Hacks . | . . Terminals . | . . Fabricators . | . . Repair Stations . | . . Recycling Units . | . . Scanalyzers . | . . Garrison Access . | . . Data Cores Recovered . | . . Used . | . . Hacking Detections 3 | . 3 Full Trace Events 1 | . 1 Feedback Events . | . . Feedback Blocked . | . . Robot Schematics Acquired . | . . Robots Built . | . . Authchips . | . . Time . | . . Total Robot Build Rating . | . . Part Schematics Acquired . | . . Parts Built . | . . Authchips . | . . Time . | . . Total Part Build Rating . | . . Parts Repaired 1 | . 1 Time 26 | . 26 Parts Recycled . | . . Recycled Matter . | . . Retrieved Matter . | . . Retrieved Components . | . . Parts Scanalyzed . | . . Part Schematics Acquired . | . . Parts Damaged . | . . Bothacking | -11 -10 ------------ Run | Yrd Mat Used RIF Installer . | . . Robots Hacked 1 | . 1 Non-combat . | . . Combat 1 | . 1 Robot Hacks Applied 1 | . 1 parse_system 1 | . 1 Relay Couplers Released . | . . Fabnet Peak Effective % . | . . Robots Rewired . | . . Allies Hacked . | . . Hacks Repelled . | . . Allies | -11 -10 -------- Run | Yrd Mat Total Allies . | . . Largest Group . | . . Highest-Rated Group . | . . Highest-Rated Ally . | . . Total Orders . | . . Ally Attacks . | . . Total Damage . | . . Kills . | . . Allies Corrupted . | . . Allies Melted . | . . Intel | -11 -10 ------- Run | Yrd Mat Robot Analysis Total . | . . Derelict Logs Recovered . | . . Drone Launches . | . . Drone Recoveries . | . . Exploration | -11 -10 ------------- Run | Yrd Mat Turns Passed 465 | 125 340 Spaces Moved 350 | 146 204 Core 85 | 66 19 Treads . | . . Legs . | . . Wheels 265 | 80 185 Hover . | . . Flight . | . . Fastest Speed 50 | 50 50 Average Speed 72 | 66 77 Slowest Speed 80 | 80 80 Overloaded Moves . | . . Propulsion Burnouts . | . . Robots Hopped . | . . Cave-ins Triggered . | . . Exploration Rate (%) 15 | 5 26 Regions Visited 1 Branch Regions . Pre-discovered Areas . | . . Known Exits Taken . | . . Unknown Exits Taken 1 | 1 . Scrap Searched . | . . Spaces Dug . | . . Terrain Destroyed . | . . Melee . | . . Projectile . | . . AOE . | . . Terrain Rammed . | . . Walls Destroyed . | . . Machines Disabled . | . . Actions | -11 -10 --------- Run | Yrd Mat Total 465 | 167 298 Wait 23 | . 23 Move 349 | 145 204 Hop . | . . Pick Up 18 | 10 8 Fast Attach . | . . Attach 13 | 7 6 Detach 1 | 1 . Swap 2 | . 2 Drop 5 | . 5 Fire 49 | 4 45 Melee 5 | . 5 Ram . | . . Kick . | . . Crush . | . . Escape Stasis . | . . Rewire . | . . Trap . | . . Miscellaneous . | . . Route ------- -11/Scrapyard -10/Materials (discovered 2 exits: Min x2) History --------- Turn | Location | Event 2 | -11/Scrapyard | Met Revision 17 91 | -11/Scrapyard | Discovered new exit (range 8) 126 | -11/Scrapyard | Entered Materials 187 | -10/Materials | Repaired Ion Engine? 262 | -10/Materials | Identified exit to Mines 307 | -10/Materials | Build established: Mutant 423 | -10/Materials | Core integrity fell below 50% 459 | -10/Materials | Core integrity fell below 20% 466 | -10/Materials | Destroyed by G-34 Mercenary with Small Laser Last Messages --------------- >>parse_system Reading system data... R-06 Scavenger collects Terrain Scan Processor. K-01 Serf collects debris. R-06 Scavenger collects Lgt. Assault Rifle. R-06 Scavenger collects Terrain Scanner. Ion Engine destroyed. Jacked G-34 Mercenary... K-01 Serf collects debris. R-06 Scavenger collects Flight Unit. K-01 Serf collects debris. R-06 Scavenger collects Flight Unit. K-01 Serf collects debris. Mining Laser destroyed. Acquired 30 matter. Wheel destroyed. K-01 Serf collects debris. Acquired 30 matter. Imp. Heat Sink destroyed. K-01 Serf collects debris. Map ----- +----------------------------------------------------+ | ??????????????????????????""" # """ #???????????? | | ??????????????????????????""" # """ #???????????? | | ??????????????????????????""" ? #???????????? | | ?????????????????????????? # #???????????? | | ??????????????????????????#######+####???????????? | | ?????????????????????????? #??????????????? | | ??????????????????????????###########????????????? | | ??????????????????????????# #????????????? | | ??????????????????????????# #????????????? | | ????????????????????#?????# #########????? | | ????????????????????# ????# ## #####? | | ????????????????????# ????# ## "T" # #? | | ????????????????????# ???/ ## # #? | | ????????????????????# ??# ## /] # #? | | ??????????????# ????? ??# ## = [+ #? | | ??????????????#^ ????? ############# = # #? | | ??????????????? ???# # [ ############# #? | | ???????????????? ??# ? / """ # """ # #? | | ????????????????? ?# ?#%"Y" # "R" # #? | | ??????????????#####+## ?# " " # """ " " # #? | | ??????????????? ?# % # """ * # #? | | ???????????????? # + """ + #? | | ??????????????? # # # #? | | ???????????????"" """ ######## # #? | | ??????????????""" """ #################### #? | | ???????????? """ @ ## | | ?????????? ! u T# | | ??????????!%! u k k ## | | ???????????## % g #? | | ????????????# % % #? | | ????????????# #### ############# #? | | ???????????? ?????# ????????????# #? | | ???????????????????# ????????????#########+### | | ???????????????????# ??????????????????# | | ??????????????>????# ??????????????????#""""" | | ???????????????????# k ??????????????????#""""" | | ???????????????????# ??????????????????#""""" | | ???????????????????# ???????????????????#""""" | | ???????????????????# ???????????????????#""""" | | ??????????????????? ???????????????????#""""" | | ??????????????????? ??? ???????????????????#""""" | | ???????????????????????????????????????????# | | ???????????????????????????????????????????# [ | | ???????????????????????????????????????????# [ | | ???????????????????????????????????????????####### | | ?????????????????????????????>???????????????????? | | ?????????????????????????????????????????????????? | | ?????????????????????????????????????????????????? | | ?????????????????????????????????????????????????? | | ?????????????????????????????????????????????????? | +----------------------------------------------------+ Best States ------------- Heat Dissipation 39 Energy Generation 10 Energy Capacity 250 Matter Stores 300 Matter Capacity 300 Sight Range 16 Terrain Scan Density 10 Evasion (%) 50 Item Schematics ----------------- None Robot Schematics ------------------ None Fabricated ------------ Nothing Alien Tech Used ----------------- None Achievements -------------- Part-time Mechanic Challenges ------------ None Game ------ Seed RecoilNeutrinoPlating Manual? 0 Play Time 00:14:06 Cumulative 2.0 hours Start 2024.07.07 @ 12:50:42 End 2024.07.07 @ 13:06:50 Sessions 1 Manual Loads 0 Difficulty Rogue Special Mode None Game No. 3 Rogue 3 Adventurer 0 Explorer 0 Win Type - Total 0 Types 0/0/0/0/0/0/0/0/0 Lore% 1 Gallery% 4 Achievement% 3 Wizard Run 0 Options --------- Layout 1 ASCII 0 Keyboard 0 Movement Arrows Keybinds 0 Fullscreen 1 Font 28/Dina Map View 50x43 Zoom Use 0% Tactical HUD 0 Map Filters NONE Filters NONE Steam 1 RUN: 73a12e5d-47d1-4250-9dc0-e3f65f80545a